lending/lending_fUSD_20260330
["ID","MTS","AMOUNT","RATE_DAILY","PERIOD"]
[419099237,1774883348292,-500.0,0.0001,2]
[419099238,1774883348315,-500.0,0.0001,2]
[419099239,1774883348339,-500.0,0.0001,2]
[419099240,1774883348363,-500.0,0.0001,2]
[419099241,1774883348386,-500.0,0.0001,2]
[419099242,1774883348409,-500.0,0.0001,2]
[419099243,1774883348431,-500.0,0.0001,2]
[419099244,1774883348454,-500.0,0.0001,2]
[419099245,1774883348478,-500.0,0.0001,2]
[419099246,1774883348500,-500.0,0.0001,2]
[419099247,1774883348522,-500.0,0.0001,2]
[419099248,1774883348544,-500.0,0.0001,2]
[419099249,1774883348567,-500.0,0.0001,2]
[419099250,1774883348590,-500.0,0.0001,2]
[419099251,1774883348612,-500.0,0.0001,2]
[419099252,1774883348634,-500.0,0.0001,2]
[419099253,1774883348657,-500.0,0.0001,2]
[419099254,1774883348680,-500.0,0.0001,2]
[419099255,1774883348701,-500.0,0.0001,2]
[419099256,1774883348722,-500.0,0.0001,2]
[419099257,1774883348743,-500.0,0.0001,2]
[419099258,1774883348766,-500.0,0.0001,2]
[419099259,1774883348787,-500.0,0.0001,2]
[419099260,1774883348807,-500.0,0.0001,2]
[419099261,1774883348830,-500.0,0.0001,2]
[419099262,1774883348853,-500.0,0.0001,2]
[419099263,1774883348876,-500.0,0.0001,2]
[419099264,1774883348898,-500.0,0.0001,2]
[419099265,1774883348919,-500.0,0.0001,2]
[419099266,1774883348940,-500.0,0.0001,2]
[419099267,1774883348962,-500.0,0.0001,2]
[419099268,1774883348983,-500.0,0.0001,2]
[419099269,1774883349004,-500.0,0.0001,2]
[419099270,1774883349024,-500.0,0.0001,2]
[419099271,1774883349045,-500.0,0.0001,2]
[419099272,1774883349064,-300.0,0.00010999,2]
[419099273,1774883349087,-300.0,0.00010999,2]
[419099274,1774883349107,-300.0,0.00011141,2]
[419099275,1774883349128,-150.0,0.000125,2]
[419099276,1774883349149,-500.0,0.0001253,2]
[419099277,1774883349169,-4148.4413,0.0001253,2]
[419099278,1774883349189,-3982.5063,0.0001253,2]
[419099279,1774883349209,-6769.3186,0.0001253,2]
[419099280,1774883349230,-2500.0,0.0001253,2]
[419099281,1774883349251,-210.88264644,0.0001258,2]
[419099282,1774883349271,-723.21287554,0.0001262,2]
[419099283,1774883357164,605.91,9.717e-05,2]
[419099284,1774883411518,2262.21533,9.5e-05,3]
[419099285,1774883411546,8366.15384215,9.5e-05,3]
[419099297,1774883432066,-400.0,9.5e-05,3]
[419099298,1774883432119,-2505.99198305,9.5e-05,3]
[419099299,1774883432174,-1300.57826522,9.5e-05,3]
[419099300,1774883432230,-1068.9866,9.5e-05,3]
[419099301,1774883432243,-1992.48647114,9.5e-05,3]
[419099302,1774883432284,-3791.94786815,9.5e-05,3]
[419099303,1774883432340,-111532.83815563,9.5e-05,3]
[419099306,1774883432352,-7086.09064012,9.5e-05,3]
[419099364,1774883440388,-1183.13245697,9.5e-05,3]
[419099372,1774883440868,-77678.98308529,9.5e-05,3]
[419099373,1774883440878,-22942.89747795,0.0001,2]
[419099374,1774883440887,-348.42752663,0.0001,2]
[419099375,1774883440897,-309.71397811,0.000125,2]
[419099376,1774883440907,-302.0,0.000125,2]
[419099377,1774883440917,-2500.0,0.0001253,2]
[419099378,1774883440928,-600.0,0.0001256,2]
[419099379,1774883440939,-600.0,0.00012611,2]
[419099380,1774883440948,-600.0,0.00012611,2]
[419099381,1774883440959,-600.0,0.00012611,2]
[419099382,1774883440969,-3501.2732491,0.0001262,2]
[419099383,1774883440980,-500.0,0.00012629,2]
[419099384,1774883440990,-500.0,0.00012629,2]
[419099385,1774883440999,-521.50044973,0.00012629,2]
[419099386,1774883441008,-300.0,0.00012629,2]
[419099387,1774883441018,-277946.14715114,0.0001263,2]
[419099388,1774883441036,-1573.85437123,0.0001263,2]
[419099389,1774883441063,-7800.0,0.0001263,2]
[419099390,1774883441075,-347.25,0.0001263,2]
[419099391,1774883441092,-15600.21527763,0.0001263,2]
[419099392,1774883441101,-3319.42,0.0001268,2]
[419099393,1774883441111,-154.53,0.00013219,2]
[419099394,1774883441121,-200.0,0.0001328,2]
[419099395,1774883441131,-4582.12,0.00013282,2]
[419099396,1774883441142,-249.11,0.00013338,2]
[419099397,1774883441153,-1300.27898027,0.000134,2]
[419099398,1774883441164,-150.0,0.000135,2]
[419099399,1774883441175,-2400.0,0.00013534,2]
[419099400,1774883441185,-3000.0,0.00013534,2]
[419099401,1774883441195,-151.0,0.00013592,2]
[419099402,1774883441205,-151.0,0.00013592,2]
[419099403,1774883441214,-151.0,0.00013592,2]
[419099404,1774883441224,-151.0,0.00013592,2]
[419099405,1774883441234,-151.0,0.00013592,2]
[419099406,1774883441243,-151.0,0.00013592,2]
[419099408,1774883441253,-151.0,0.00013592,2]
[419099409,1774883441263,-151.0,0.00013592,2]
[419099410,1774883441275,-151.0,0.00013592,2]
[419099411,1774883441286,-151.0,0.00013592,2]
[419099412,1774883441296,-163.93651489,0.00013592,2]
[419099413,1774883441305,-500.0,0.00013599,2]
[419099414,1774883441314,-500.0,0.00013599,2]
[419099415,1774883441324,-274.62354001,0.00013599,2]
[419099416,1774883441335,-500.0,0.00013599,2]
[419099417,1774883441345,-500.0,0.00013599,2]
[419099418,1774883441354,-500.0,0.00013599,2]
[419099419,1774883441363,-282.63881022,0.00013599,2]
[419099420,1774883441372,-500.0,0.00013599,2]
[419099421,1774883441382,-478.34204577,0.00013599,2]
[419099422,1774883441392,-500.0,0.00013599,2]
[419099423,1774883441401,-500.0,0.00013599,2]
[419099424,1774883441410,-30076.78483121,0.000136,2]
[419099426,1774883441422,-616978.1890787,0.000136,2]
[419099427,1774883441433,-310.94209235,0.000136,2]
[419099428,1774883441506,-70000.00000016,0.000136,2]
[419099429,1774883441518,-13893.62240269,0.000136,2]
[419099430,1774883441529,-16900.0,0.000136,2]
[419099451,1774883443682,-27724.49808426,0.000136,2]
[419099469,1774883446526,-19591.58937184,0.000136,2]
[419099470,1774883446537,-336.28372,0.000136,2]
[419099518,1774883748675,11098.03,8.5e-05,3]
[419099521,1774884118665,233.3,6.49e-05,2]
[419099522,1774884118869,233.3,6.832e-05,2]
[419099523,1774884119135,233.3,7.173e-05,2]
[419099524,1774884119367,233.3,7.515e-05,2]
[419099525,1774884119567,233.3,7.857e-05,2]
[419099526,1774884119782,233.3,8.198e-05,2]
[419099527,1774884119994,233.3,8.54e-05,2]
[419099528,1774884120222,233.3,8.881e-05,2]
[419099529,1774884131930,150.3184,0.0002,120]
[419099530,1774884152322,690.0,8.943e-05,2]
[419099531,1774884213497,533.76,8.634e-05,2]
[419099532,1774884275178,680.04,8.381e-05,2]
[419099578,1774884354126,-183.53437046,9.077e-05,2]
[419099579,1774884436121,-376.46562954,9.077e-05,2]
[419099580,1774884436141,-23.44898747,9.114e-05,2]
[419099581,1774884522240,700.0,8.845e-05,2]
[419099582,1774884549498,-308.9280287,9.114e-05,2]
[419099583,1774884549521,-469.2285057,9.15e-05,2]
[419099584,1774884570081,-652.9138943,9.15e-05,2]
[419099585,1774884570103,-233.3,9.223e-05,2]
[419099586,1774884570128,-233.3,9.565e-05,2]
[419099587,1774884570154,-1216.93,9.689e-05,2]
[419099588,1774884570182,-530.76,9.724e-05,2]
[419099589,1774884570205,-156.39595107,9.85e-05,2]
[419099590,1774884570230,-1230.77674263,9.85e-05,2]
[419099591,1774884571076,-66.45325737,9.85e-05,2]
[419099592,1774884583202,1000.0,8.648e-05,2]
[419099593,1774884583727,590.0,9.317e-05,2]
[419099610,1774884632256,-233.3,9.906e-05,2]
[419099612,1774884632266,-108.048914,9.984e-05,2]
[419099616,1774884632304,-129.951086,9.984e-05,2]
[419099619,1774884632315,-300.0,9.984e-05,2]
[419099621,1774884632326,-141.72946795,9.984e-05,2]
[419099623,1774884632338,-1009.784997,9.984e-05,2]
[419099625,1774884632353,-14.48553505,9.984e-05,2]
[419099627,1774884632364,-160.0,9.984e-05,2]
[419099629,1774884632374,-725.51446495,9.985e-05,2]
[419099634,1774884632410,-555.95984743,9.985e-05,2]
[419099635,1774884632435,-3209.51724405,9.985e-05,2]
[419099636,1774884632472,-509.00844357,9.985e-05,2]
[419099637,1774884632484,-187.50832204,9.985e-05,2]
[419099638,1774884632499,-250.0,9.985e-05,2]
[419099639,1774884632510,-920.0,0.00010191,2]
[419099640,1774884632520,-233.3,0.00010248,2]
[419099641,1774884632531,-972.61,0.00010507,2]
[419099642,1774884632542,-912.27,0.00010564,2]
[419099643,1774884632552,-233.3,0.00010589,2]
[419099644,1774884632563,-150.0,0.000109,2]
[419099645,1774884632573,-233.3,0.00010931,2]
[419099646,1774884632584,-420.0,0.00010982,2]
[419099647,1774884632594,-233.3,0.00011272,2]
[419099648,1774884632604,-1437.86,0.00011507,2]
[419099649,1774884632615,-2312.78,0.00011529,2]
[419099650,1774884632625,-233.3,0.00011614,2]
[419099651,1774884632636,-233.3,0.00011956,2]
[419099652,1774884632647,-587.0,0.00012081,2]
[419099653,1774884632658,-851.096,0.00012181,2]
[419099654,1774884632668,-233.3,0.00012297,2]
[419099655,1774884632678,-197.0359,0.000123,7]
[419099656,1774884632688,-2500.0,0.0001233,2]
[419099657,1774884632699,-64145.9467,0.0001233,2]
[419099658,1774884632709,-3791.08933375,0.00012379,2]
[419099659,1774884632719,-500.0,0.00012429,2]
[419099660,1774884632730,-500.0,0.00012429,2]
[419099661,1774884632740,-500.0,0.00012429,2]
[419099662,1774884632750,-500.0,0.00012429,2]
[419099664,1774884632760,-500.0,0.00012429,2]
[419099666,1774884632771,-500.0,0.00012429,2]
[419099668,1774884632781,-500.0,0.00012429,2]
[419099670,1774884632792,-500.0,0.00012429,2]
[419099671,1774884632802,-500.0,0.00012429,2]
[419099673,1774884632812,-500.0,0.00012429,2]
[419099675,1774884632823,-500.0,0.00012429,2]
[419099676,1774884632833,-500.0,0.00012429,2]
[419099677,1774884632843,-500.0,0.00012429,2]
[419099678,1774884632853,-500.0,0.00012429,2]
[419099679,1774884632863,-500.0,0.00012429,2]
[419099680,1774884632872,-500.0,0.00012429,2]
[419099681,1774884632883,-500.0,0.00012429,2]
[419099682,1774884632893,-500.0,0.00012429,2]
[419099683,1774884632903,-500.0,0.00012429,2]
[419099684,1774884632913,-500.0,0.00012429,2]
[419099685,1774884632923,-500.0,0.00012429,2]
[419099686,1774884632933,-500.0,0.00012429,2]
[419099687,1774884632943,-500.0,0.00012429,2]
[419099688,1774884632955,-500.0,0.00012429,2]
[419099689,1774884632965,-500.0,0.00012429,2]
[419099690,1774884632975,-500.0,0.00012429,2]
[419099691,1774884632985,-500.0,0.00012429,2]
[419099692,1774884632994,-500.0,0.00012429,2]
[419099693,1774884633010,-500.0,0.00012429,2]
[419099694,1774884633020,-500.0,0.00012429,2]
[419099695,1774884633030,-500.0,0.00012429,2]
[419099696,1774884633041,-500.0,0.00012429,2]
[419099697,1774884633052,-500.0,0.00012429,2]
[419099698,1774884633062,-500.0,0.00012429,2]
[419099699,1774884633072,-467.808225,0.00012429,2]
[419099700,1774884633082,-500.0,0.00012429,2]
[419099701,1774884633092,-500.0,0.00012429,2]
[419099702,1774884633103,-500.0,0.00012429,2]
[419099703,1774884633113,-500.0,0.00012429,2]
[419099704,1774884633123,-500.0,0.00012429,2]
[419099705,1774884633133,-500.0,0.00012429,2]
[419099706,1774884633143,-500.0,0.00012429,2]
[419099707,1774884633155,-500.0,0.00012429,2]
[419099708,1774884633166,-500.0,0.00012429,2]
[419099709,1774884633176,-500.0,0.00012429,2]
[419099710,1774884633187,-500.0,0.00012429,2]
[419099711,1774884633198,-500.0,0.00012429,2]
[419099712,1774884633208,-550.0,0.00012429,2]
[419099713,1774884633218,-500.0,0.00012429,2]
[419099714,1774884633228,-500.0,0.00012429,2]
[419099715,1774884633238,-23672.59189407,0.0001243,2]
[419099716,1774884633253,-38107.01232201,0.0001243,2]
[419099717,1774884633265,-987.75961641,0.0001243,2]
[419099718,1774884633277,-871.14161176,0.0001243,2]
[419099719,1774884633310,-2642.63241699,0.0001243,2]
[419099720,1774884633322,-976.51521252,0.0001243,2]
[419099721,1774884633344,-1284.18884217,0.0001243,2]
[419099722,1774884633357,-2772.49444839,0.0001243,2]
[419099723,1774884633370,-971.91375989,0.0001243,2]
[419099724,1774884633383,-6127.228,0.0001243,2]
[419099725,1774884633448,-1159.94357071,0.0001243,2]
[419099726,1774884633460,-1933.86916611,0.0001243,2]
[419099727,1774884633472,-716.7707529,0.0001243,2]
[419099728,1774884633485,-2625.65939992,0.0001243,2]
[419099734,1774884639051,-451.15504761,0.0001243,2]
[419099737,1774884639075,-1916.8108311,0.0001243,2]
[419099739,1774884639088,-1269.73094407,0.0001243,2]
[419099741,1774884639099,-1666.51472325,0.0001243,2]
[419099746,1774884639131,-367.69572583,0.0001243,2]
[419099749,1774884639147,-68820.99999995,0.0001243,2]
[419099833,1774884641019,-4368.552554,0.0001243,2]
[419099834,1774884641353,-13483.74955998,0.0001243,2]
[419099839,1774884643780,-111662.90637692,0.0001243,2]
[419099840,1774884643792,-346.4546635,0.0001243,2]
[419099841,1774884643833,-5340.95403698,0.0001243,2]
[419099845,1774884648686,-3530.03345879,0.0001243,2]
[419099846,1774884648700,-645.75968916,0.0001243,2]
[419099847,1774884648720,-4930.54698951,0.0001243,2]
[419099852,1774885179753,1799.1,8.7e-05,2]
[419099853,1774885193303,1034.83,8.7e-05,2]
[419099854,1774885204123,1894.7,8.7e-05,2]
[419099855,1774885215349,1922.47,8.7e-05,2]
[419099856,1774885225662,2773.74,8.7e-05,2]
[419099857,1774885237533,1447.13,8.7e-05,2]
[419099858,1774885249109,2717.99,8.7e-05,2]
[419099859,1774885260231,2717.99,8.7e-05,2]
[419099860,1774885270965,2717.99,8.7e-05,2]
[419099861,1774885428597,164.27,0.0001,20]
[419099862,1774885555132,-156.89814703,0.00011551,2]
[419099863,1774885650117,-683.19,0.00010765,2]
[419099864,1774885650139,-128.10185297,0.00011551,2]
[419099865,1774885650159,-600.0,0.00011551,2]
[419099866,1774885650179,-600.0,0.00011551,2]
[419099867,1774885650201,-1810.0,0.00011551,2]
[419099868,1774885650224,-600.0,0.00011659,2]
[419099869,1774885650246,-603.17,0.00011796,2]
[419099870,1774885650266,-200.0,0.00011945,2]
[419099871,1774885650286,-1005.96305636,0.00011955,2]
[419099872,1774885653378,-202.46352643,0.00011955,2]
[419099873,1774885768403,-530.0,0.00010912,2]
[419099874,1774885768423,-1100.0,0.00011883,2]
[419099875,1774885768445,-791.57341721,0.00011955,2]
[419099876,1774885768464,-3319.42,0.00011967,2]
[419099877,1774885768485,-600.0,0.00011982,2]
[419099878,1774885768505,-249.11,0.00012008,2]
[419099879,1774885768525,-600.0,0.00012167,2]
[419099880,1774885768546,-600.0,0.00012167,2]
[419099881,1774885768567,-600.0,0.00012167,2]
[419099882,1774885768587,-300.0,0.00012229,2]
[419099883,1774885768609,-300.0,0.00012229,2]
[419099884,1774885768630,-2500.0,0.0001223,2]
[419099885,1774885768651,-150.0,0.00012321,2]
[419099886,1774885768672,-300.0,0.00012321,2]
[419099887,1774885768693,-500.0,0.00012322,2]
[419099888,1774885768714,-200.0,0.00012322,2]
[419099889,1774885768734,-500.0,0.00012322,2]
[419099890,1774885768754,-500.0,0.00012322,2]
[419099891,1774885768774,-500.0,0.00012322,2]
[419099892,1774885768796,-151.0,0.00012322,2]
[419099893,1774885768817,-500.0,0.00012322,2]
[419099894,1774885768839,-151.0,0.00012322,2]
[419099895,1774885768860,-151.0,0.00012322,2]
[419099896,1774885768880,-500.0,0.00012322,2]
[419099897,1774885768902,-151.0,0.00012322,2]
[419099898,1774885768923,-500.0,0.00012322,2]
[419099899,1774885768945,-151.0,0.00012322,2]
[419099900,1774885768966,-500.0,0.00012322,2]
[419099901,1774885768988,-151.0,0.00012322,2]
[419099902,1774885769009,-500.0,0.00012322,2]
[419099903,1774885769033,-151.0,0.00012322,2]
[419099904,1774885769055,-500.0,0.00012322,2]
[419099905,1774885769076,-151.0,0.00012322,2]
[419099906,1774885769098,-500.0,0.00012322,2]
[419099907,1774885769119,-151.0,0.00012322,2]
[419099908,1774885769140,-151.0,0.00012322,2]
[419099909,1774885769161,-151.0,0.00012322,2]
[419099910,1774885769182,-500.0,0.00012322,2]
[419099911,1774885769203,-500.0,0.00012322,2]
[419099912,1774885769225,-500.0,0.00012322,2]
[419099913,1774885769247,-500.0,0.00012322,2]
[419099914,1774885769268,-500.0,0.00012322,2]
[419099915,1774885769290,-500.0,0.00012322,2]
[419099916,1774885769310,-500.0,0.00012322,2]
[419099917,1774885769331,-502.64731971,0.00012322,2]
[419099918,1774885769357,-500.0,0.00012322,2]
[419099919,1774885769378,-500.0,0.00012322,2]
[419099920,1774885769401,-500.0,0.00012322,2]
[419099921,1774885769424,-524.17339372,0.00012322,2]
[419099922,1774885769445,-151.0,0.00012322,2]
[419099923,1774885769467,-151.0,0.00012322,2]
[419099924,1774885769489,-151.0,0.00012322,2]
[419099925,1774885769511,-151.0,0.00012322,2]
[419099926,1774885769533,-151.0,0.00012322,2]
[419099927,1774885769555,-151.0,0.00012322,2]
[419099928,1774885769576,-151.0,0.00012322,2]
[419099929,1774885769599,-151.0,0.00012322,2]
[419099930,1774885769621,-151.0,0.00012322,2]
[419099931,1774885769643,-151.0,0.00012322,2]
[419099932,1774885769665,-151.0,0.00012322,2]
[419099933,1774885769685,-151.0,0.00012322,2]
[419099934,1774885769708,-151.0,0.00012322,2]
[419099935,1774885769732,-151.0,0.00012322,2]
[419099936,1774885769753,-151.0,0.00012322,2]
[419099937,1774885769776,-151.0,0.00012322,2]
[419099938,1774885769798,-151.0,0.00012322,2]
[419099939,1774885769823,-151.0,0.00012322,2]
[419099940,1774885769846,-151.0,0.00012322,2]
[419099941,1774885769869,-151.0,0.00012322,2]
[419099942,1774885769889,-1386.78395259,0.00012322,2]
[419099943,1774885769909,-8214.90893677,0.00012322,2]
[419099947,1774885831348,-321.0,0.00012321,2]
[419099948,1774885831358,-215.66977,0.00012321,2]
[419099949,1774885831369,-82.33023,0.00012321,2]
[419099950,1774885831379,-600.0,0.00012322,2]
[419099951,1774885831388,-428.28056819,0.00012322,2]
[419099952,1774885832080,-24367.84059504,0.00012322,2]
[419099953,1774885832090,-3829.15676404,0.0001233,2]
[419099954,1774885832133,-401.17359594,0.0001233,2]
[419099956,1774885838067,-618.58782579,0.0001233,2]
[419099957,1774885838082,-323.20168257,0.0001233,2]
[419099963,1774885839765,-2238.0,0.0001233,2]
[419099964,1774885839819,-774.6985844,0.0001233,2]
[419099965,1774885840295,-83521.43054726,0.0001233,2]
[419099966,1774885840304,-2646.6329,0.0001233,2]
[419099967,1774885840313,-28988.30228177,0.0001233,2]
[419099968,1774885840399,-17067.89516353,0.0001233,2]
[419099969,1774885840411,-12445.2175547,0.0001233,2]
[419099970,1774885840421,-1000.0,0.0001233,2]
[419099971,1774885840430,-3653.3064,0.00012384,2]
[419099972,1774885840440,-1093.9373904,0.0001243,2]
[419099973,1774885840449,-163.0,0.0001243,3]
[419099974,1774885840459,-157.0,0.0001243,3]
[419099975,1774885840468,-233.3,0.00012639,2]
[419099976,1774885840478,-250.0,0.00012706,2]
[419099977,1774885840498,-166.66,0.00012938,2]
[419099978,1774885840516,-1071.13,0.00012949,2]
[419099979,1774885840529,-233.3,0.0001298,2]
[419099980,1774885840545,-250.0,0.00013,2]
[419099981,1774885840563,-485.93,0.00013029,2]
[419099982,1774885840578,-164.63,0.00013067,2]
[419099983,1774885840596,-241.0,0.00013122,2]
[419099984,1774885840613,-281.0,0.00013148,2]
[419099987,1774885840628,-600.0,0.00013151,2]
[419099989,1774885840640,-1300.27898027,0.000132,2]
[419099992,1774885840655,-166.66,0.00013211,2]
[419099994,1774885840672,-10690.51430047,0.00013376,2]
[419099997,1774885840692,-2987.2,0.00013376,2]
[419100000,1774885840714,-2095.592,0.00013376,2]
[419100003,1774885840729,-1603.7496992,0.00013376,2]
[419100006,1774885840747,-1397.0,0.00013376,2]
[419100007,1774885840764,-1127.76400033,0.00013376,2]
[419100008,1774885840781,-154.53,0.00013379,2]
[419100009,1774885840798,-255.0,0.00013405,2]
[419100010,1774885840811,-44.56495342,0.0001345,2]
[419100011,1774885840969,-1012.99137254,0.0001345,2]
[419100012,1774885840986,-942.44367404,0.0001345,2]
[419100013,1774885841003,-166.66,0.00013483,2]
[419100014,1774885841017,-2624.82,0.00013489,2]
[419100015,1774885841031,-150.0,0.000135,2]
[419100016,1774885841045,-247.0,0.00013522,2]
[419100017,1774885841059,-1110.39211546,0.00013534,2]
[419100018,1774885841653,-1289.60788454,0.00013534,2]
[419100019,1774885841668,-3000.0,0.00013534,2]
[419100020,1774885841681,-600.0,0.00013553,2]
[419100021,1774885841696,-7419.93839391,0.00013569,2]
[419100022,1774885841712,-1367.2009,0.00013569,2]
[419100023,1774885841747,-245.22841569,0.00013569,2]
[419100024,1774885841770,-250.0,0.000136,3]
[419100025,1774885841792,-500.0,0.000136,2]
[419100026,1774885841811,-151.0,0.00013664,2]
[419100027,1774885841830,-500.0,0.00013664,2]
[419100028,1774885841849,-151.0,0.00013664,2]
[419100029,1774885841866,-174.61919141,0.00013664,2]
[419100031,1774885841883,-200.0,0.00013699,2]
[419100033,1774885841898,-500.0,0.00013719,2]
[419100036,1774885841914,-151.0,0.00013719,2]
[419100039,1774885841930,-166.66,0.00013756,2]
[419100041,1774885841945,-500.0,0.00013774,2]
[419100044,1774885841959,-151.0,0.00013774,2]
[419100046,1774885841974,-500.0,0.00013827,2]
[419100049,1774885841989,-150.0,0.00013827,2]
[419100051,1774885842004,-27.71843186,0.00013829,2]
[419100055,1774885842036,-472.28156814,0.00013829,2]
[419100058,1774885842050,-151.0,0.00013829,2]
[419100060,1774885842065,-1349.50117988,0.00013839,2]
[419100063,1774885842082,-250.49882012,0.00013839,2]
[419100066,1774885842097,-171.47,0.00013862,2]
[419100068,1774885842113,-511.53,0.0001387,2]
[419100070,1774885842128,-500.0,0.00013884,2]
[419100073,1774885842142,-151.0,0.00013884,2]
[419100075,1774885842156,-3240.0,0.00013885,2]
[419100078,1774885842170,-500.0,0.00013906,2]
[419100080,1774885842184,-500.0,0.00013939,2]
[419100084,1774885842197,-151.0,0.00013939,2]
[419100086,1774885842211,-500.0,0.00013994,2]
[419100089,1774885842231,-151.0,0.00013994,2]
[419100093,1774885842254,-166.66,0.00014028,2]
[419100096,1774885842276,-267.76132256,0.00014049,2]
[419100099,1774885842299,-232.23867744,0.00014049,2]
[419100102,1774885842317,-151.0,0.00014049,2]
[419100105,1774885842335,-500.0,0.00014104,2]
[419100108,1774885842353,-151.0,0.00014104,2]
[419100111,1774885842369,-500.0,0.00014159,2]
[419100113,1774885842385,-151.0,0.00014159,2]
[419100116,1774885842402,-1500.0,0.00014166,2]
[419100119,1774885842418,-515.83282054,0.00014185,2]
[419100123,1774885842452,-1176.555,0.00014185,2]
[419100128,1774885842485,-1852.927,0.00014185,2]
[419100190,1774885843110,-4907.59960843,0.00014185,2]
[419100213,1774885843429,-371.5438189,0.00014185,2]
[419100216,1774885843446,-1716.97175213,0.00014185,2]
[419100218,1774885843461,-500.0,0.00014195,2]
[419100221,1774885843476,-500.0,0.00014195,2]
[419100223,1774885843489,-500.0,0.00014195,2]
[419100225,1774885843503,-500.0,0.00014195,2]
[419100228,1774885843516,-500.0,0.00014195,2]
[419100230,1774885843529,-500.0,0.00014195,2]
[419100232,1774885843544,-500.0,0.00014195,2]
[419100235,1774885843557,-500.0,0.00014195,2]
[419100237,1774885843571,-500.0,0.00014195,2]
[419100239,1774885843583,-487.16585343,0.00014195,2]
[419100241,1774885843596,-151.0,0.00014212,2]
[419100244,1774885843609,-181.08010149,0.00014212,2]
[419100246,1774885843622,-500.0,0.00014214,2]
[419100248,1774885843636,-151.0,0.00014214,2]
[419100251,1774885843648,-160.0,0.00014251,2]
[419100253,1774885843661,-160.0,0.00014251,2]
[419100255,1774885843673,-166.66,0.000143,2]
[419100257,1774885843685,-178.0,0.00014588,2]
[419100259,1774885843698,-242.12,0.0001475,30]
[419100262,1774885843710,-197.75,0.0001476,2]
[419100264,1774885843722,-187.78006525,0.0001476,2]
[419100266,1774885843735,-15.97224235,0.000148,7]
[419100396,1774885845525,-181.06225765,0.000148,7]
[419100397,1774885845538,-2012.29998404,0.00014904,2]
[419100398,1774885845553,-387.70001596,0.00014904,2]
[419100399,1774885845566,-35.90429598,0.00014904,2]
[419100400,1774885845612,-2964.09570402,0.00014904,2]
[419100401,1774885845625,-2000.0,0.00014944,2]
[419100402,1774885845637,-165.52796281,0.00015,10]
[419100403,1774885845649,-300.0,0.00015,2]
[419100404,1774885845662,-3134.0,0.00015,15]
[419100405,1774885845674,-168.18,0.00015011,2]
[419100406,1774885845685,-168.18,0.00015011,2]
[419100407,1774885845698,-3518.0,0.00015084,2]
[419100408,1774885845713,-621.0,0.00015084,2]
[419100409,1774885845726,-1045.0,0.00015084,2]
[419100410,1774885845739,-1346.0,0.00015084,2]
[419100411,1774885845750,-1262.0,0.00015084,2]
[419100412,1774885845763,-863.25880653,0.00015084,2]
[419100413,1774885845785,-352.74119347,0.00015084,2]
[419100414,1774885845799,-827.34880653,0.00015084,2]
[419100415,1774885845926,-97.65119347,0.00015084,2]
[419100416,1774885845938,-1861.64709264,0.00015084,2]
[419100418,1774885846009,-17.43312745,0.00015084,2]
[419100419,1774885846025,-588.91977991,0.00015084,2]
[419100420,1774885846037,-6014.0,0.00015084,2]
[419100421,1774885846049,-415.0,0.00015084,2]
[419100423,1774885846061,-200.0,0.000151,5]